bitfinex-derivatives/quotes_BNBF0:USTF0_20250413
["timestamp","ask_amount","ask_price","bid_price","bid_amount"]
[1744581708518,1.24425196,583.27,582.92,0.584]
[1744581708719,1.24425784,583.26,582.92,0.584]
[1744581708915,1.24426371,583.25,582.92,0.584]
[1744581709115,1.24426959,583.24,582.92,0.584]
[1744581709318,1.24427547,583.23,582.92,0.584]
[1744581709618,0.90135759,583.22,582.92,0.584]
[1744581709819,0.93057079,583.21,582.92,0.584]
[1744581710016,0.58764115,583.2,582.92,0.584]
[1744581710216,0.58764115,583.19,582.92,0.584]
[1744581710414,0.58764115,583.18,582.92,0.584]
[1744581710613,0.58764115,583.17,582.92,0.584]
[1744581710819,0.58764115,583.16,582.92,0.584]
[1744581711113,0.58764115,583.15,582.92,0.584]
[1744581711315,0.58764115,583.14,582.92,0.584]
[1744581711518,0.58764115,583.13,582.92,0.584]
[1744581711717,0.58764115,583.12,582.92,0.584]
[1744581711919,0.58764115,583.11,582.92,0.584]
[1744581712117,0.58764115,583.1,582.92,0.584]
[1744581712316,0.58764115,583.09,582.92,0.584]
[1744581712522,0.58764115,583.08,582.92,0.584]
[1744581712721,0.34295316,583.17,582.92,0.584]
[1744581712722,0.58764115,583.07,582.92,0.584]
[1744581712918,0.58764115,583.06,582.92,0.584]
[1744581713118,0.58764115,583.05,582.92,0.584]
[1744581713318,0.58764115,583.04,582.92,0.584]
[1744581713523,0.58764115,583.03,582.92,0.584]
[1744581713724,0.58764115,583.02,582.92,0.584]
[1744581714023,0.58376666,583.01,582.92,0.584]
[1744581714225,0.58370017,583.0,582.92,0.584]
[1744581714421,0.58370017,582.99,582.92,0.584]
[1744581714625,0.58370017,582.98,582.92,0.584]
[1744581714825,0.58370017,582.97,582.92,0.584]
[1744581715027,0.58370017,582.96,582.92,0.584]
[1744581715226,0.58370017,582.95,582.92,0.584]
[1744581715428,0.58370017,582.94,582.92,0.584]
[1744581715626,0.58370017,582.93,582.92,0.584]
[1744581719231,0.58370017,583.16,582.92,0.584]
[1744581719432,0.9266651,583.15,582.92,0.584]
[1744581719632,0.58370017,583.14,582.92,0.584]
[1744581719831,0.58370017,583.13,582.92,0.584]
[1744581720026,0.58370017,583.12,582.92,0.584]
[1744581720230,0.58370017,583.11,582.92,0.584]
[1744581720431,0.58370017,583.1,582.92,0.584]
[1744581720733,0.58370017,583.09,582.92,0.584]
[1744581720927,0.58370017,583.08,582.92,0.584]
[1744581721132,0.58370017,583.07,582.92,0.584]
[1744581721332,0.58370017,583.06,582.92,0.584]
[1744581721529,0.58370017,583.05,582.92,0.584]
[1744581721731,0.58370017,583.04,582.92,0.584]
[1744581721930,0.58370017,583.03,582.92,0.584]
[1744581722130,0.58340572,583.02,582.92,0.584]
[1744581722331,0.58340572,583.01,582.92,0.584]
[1744581722531,0.58340572,583.0,582.92,0.584]
[1744581722732,0.58340572,582.99,582.92,0.584]
[1744581722934,0.58340572,582.98,582.92,0.584]
[1744581723132,0.58340572,582.97,582.92,0.584]
[1744581723332,0.58340572,582.96,582.92,0.584]
[1744581723632,0.34296493,583.15,582.92,0.584]
[1744581723832,0.58342992,583.14,582.92,0.584]
[1744581724034,0.58342992,583.13,582.92,0.584]
[1744581724234,0.58342992,583.12,582.92,0.584]
[1744581724533,0.58342992,583.11,582.92,0.584]
[1744581724733,0.58342992,583.1,582.92,0.584]
[1744581724935,0.58342992,583.09,582.92,0.584]
[1744581725134,0.58342992,583.08,582.92,0.584]
[1744581725333,0.58342992,583.07,582.92,0.584]
[1744581725533,0.58342992,583.06,582.92,0.584]
[1744581725832,0.58342992,583.05,582.92,0.584]
[1744581726034,0.58342992,583.04,582.92,0.584]
[1744581726231,0.58342992,583.03,582.92,0.584]
[1744581726434,0.58342992,583.02,582.92,0.584]
[1744581726632,0.58342992,583.01,582.92,0.584]
[1744581726829,0.58342992,583.0,582.92,0.584]
[1744581727031,0.34296493,583.15,582.92,0.584]
[1744581727335,0.58362539,583.14,582.81,0.608]
[1744581727636,0.58362539,583.13,582.81,0.608]
[1744581727835,0.58362539,583.12,582.81,0.608]
[1744581728030,0.58362539,583.11,582.81,0.608]
[1744581728230,0.58362539,583.1,582.81,0.608]
[1744581728537,0.58362539,583.09,582.81,0.608]
[1744581728830,0.58362539,583.08,582.81,0.608]
[1744581729033,0.58362539,583.07,582.81,0.608]
[1744581729233,0.58362539,583.06,582.81,0.608]
[1744581729437,0.58362539,583.05,582.81,0.608]
[1744581729634,0.58362539,583.04,582.81,0.608]
[1744581729832,0.58362539,583.03,582.81,0.608]
[1744581730034,0.58362539,583.02,582.81,0.608]
[1744581730230,0.58362539,583.01,582.81,0.608]
[1744581730433,0.58362539,583.0,582.81,0.608]
[1744581730734,0.58362539,582.99,582.81,0.608]
[1744581730931,0.58362539,582.98,582.81,0.608]
[1744581731134,0.58362539,582.97,582.81,0.608]
[1744581731331,0.58362539,582.96,582.81,0.608]
[1744581731536,0.58362539,582.95,582.81,0.608]
[1744581731737,0.58362539,582.94,582.81,0.608]
[1744581731936,0.58362539,582.93,582.81,0.608]
[1744581732138,0.58362539,582.92,582.81,0.608]
[1744581732337,0.58362539,582.91,582.81,0.608]
[1744581732638,0.58362539,582.9,582.81,0.608]
[1744581732833,0.58362539,582.89,582.81,0.608]
[1744581733037,0.58362539,582.88,582.81,0.608]
[1744581733237,0.58362539,582.87,582.81,0.608]
[1744581733433,0.58362539,582.86,582.81,0.608]
[1744581733640,0.34296493,583.15,582.81,0.608]
[1744581733839,0.5854397,583.14,582.81,0.608]
[1744581734039,0.5854397,583.13,582.81,0.608]
[1744581734235,0.5854397,583.12,582.67,0.654]
[1744581734538,0.5854397,583.11,582.67,0.654]
[1744581734734,0.5854397,583.1,582.67,0.654]
[1744581734937,0.5854397,583.09,582.67,0.654]
[1744581735137,0.5854397,583.08,582.67,0.654]
[1744581735336,0.5854397,583.07,582.67,0.654]
[1744581735536,0.5854397,583.06,582.67,1.241]
[1744581735840,0.5854397,583.05,582.67,1.241]
[1744581736039,0.5854397,583.04,582.67,1.241]
[1744581736340,0.34296493,583.15,582.67,1.241]
[1744581736341,0.5854397,583.03,582.67,1.241]
[1744581736539,0.5854397,583.02,582.67,1.241]
[1744581736741,0.5854397,583.01,582.67,1.241]
[1744581736936,0.5854397,583.0,582.67,1.241]
[1744581737136,0.5854397,582.99,582.67,1.241]
[1744581737442,0.5854397,582.98,582.67,1.241]
[1744581737736,0.5854397,582.97,582.67,1.241]
[1744581737936,0.5854397,582.96,582.67,1.241]
[1744581738140,0.5854397,582.95,582.67,1.241]
[1744581738342,0.5854397,582.94,582.67,1.241]
[1744581738541,0.5854397,582.93,582.67,1.241]
[1744581738741,0.5854397,582.92,582.67,1.241]
[1744581738941,0.5854397,582.91,582.67,1.241]
[1744581739137,0.5854397,582.9,582.67,1.241]
[1744581739435,0.34296493,583.15,582.67,1.241]
[1744581739436,0.5854397,582.89,582.67,1.241]
[1744581739638,0.5854397,582.88,582.67,1.241]
[1744581739838,0.34296493,583.15,582.67,1.241]
[1744581740141,0.58712409,583.14,582.67,1.241]
[1744581740343,0.58712409,583.13,582.67,1.241]
[1744581740542,0.58712409,583.12,582.67,1.241]
[1744581740740,0.58712409,583.11,582.67,1.241]
[1744581741047,0.58712409,583.1,582.67,1.241]
[1744581741344,0.58712409,583.09,582.67,1.241]
[1744581741542,0.58712409,583.08,582.67,1.241]
[1744581741743,0.58712409,583.07,582.67,1.241]
[1744581741943,0.58712409,583.06,582.67,1.241]
[1744581742139,0.58712409,583.05,582.67,1.241]
[1744581742347,0.58712409,583.04,582.67,1.241]
[1744581742542,0.58712409,583.03,582.67,1.241]
[1744581742745,0.58712409,583.02,582.67,1.241]
[1744581742946,0.58712409,583.01,582.67,1.241]
[1744581743243,0.58712409,583.0,582.67,1.241]
[1744581743446,0.58712409,582.99,582.67,1.241]
[1744581743741,0.58712409,582.98,582.67,1.241]
[1744581743945,0.58712409,582.97,582.67,1.241]
[1744581744146,0.58712409,582.96,582.67,1.241]
[1744581744345,0.216,583.21,582.67,1.241]
[1744581744547,0.58735524,583.2,582.67,1.241]
[1744581744848,0.58735598,583.19,582.67,1.241]
[1744581745047,0.58735598,583.18,582.67,1.241]
[1744581745348,0.58735598,583.17,582.67,1.241]
[1744581745646,0.58735598,583.16,582.67,1.241]
[1744581745844,0.58735598,583.15,582.67,1.241]
[1744581746048,0.58735598,583.14,582.67,1.241]
[1744581746244,0.58735598,583.13,582.67,1.241]
[1744581746445,0.58735598,583.12,582.67,1.241]
[1744581746649,0.58735598,583.11,582.67,1.241]
[1744581746850,0.58735598,583.1,582.67,1.241]
[1744581747050,0.58735598,583.09,582.67,1.241]
[1744581747249,0.58735598,583.08,582.67,1.241]
[1744581747450,0.58735598,583.07,582.67,1.241]
[1744581747651,0.58735598,583.06,582.67,1.241]
[1744581747851,0.58735598,583.05,582.67,1.241]
[1744581748052,0.58735598,583.04,582.67,0.587]
[1744581748351,0.58735598,583.03,582.67,0.587]
[1744581748651,0.58735598,583.02,582.68,0.31522219]
[1744581748950,0.216,583.21,582.68,0.31522219]
[1744581749146,0.58705642,583.2,582.68,0.31522219]
[1744581749351,0.58705642,583.19,582.68,0.31522219]
[1744581749548,0.58705642,583.18,582.68,0.31522219]
[1744581749747,0.58705642,583.17,582.68,0.31522219]
[1744581749950,0.58705642,583.16,582.68,0.31522219]
[1744581750147,0.58705642,583.15,582.68,0.31522219]
[1744581750352,0.58705642,583.14,582.68,0.31522219]
[1744581750553,0.58691725,583.13,582.68,0.31522219]
[1744581750849,0.58691725,583.12,582.68,0.31522219]
[1744581751052,0.58691725,583.11,582.68,0.31522219]
[1744581751353,0.58691725,583.1,582.68,0.31522219]
[1744581751548,0.58691725,583.09,582.68,0.31522219]
[1744581751753,0.58691725,583.08,582.68,0.99122219]
[1744581751954,0.58691725,583.07,582.68,0.676]
[1744581752149,0.216,583.21,582.68,0.676]
[1744581752354,0.5866372,583.2,582.68,0.676]
[1744581752554,0.5866372,583.19,582.68,0.676]
[1744581752754,0.5866372,583.18,582.68,0.676]
[1744581752951,0.5866372,583.17,582.68,0.676]
[1744581753154,0.5866372,583.16,582.68,0.676]
[1744581753354,0.5866372,583.15,582.68,0.676]
[1744581753556,0.5866372,583.14,582.68,0.676]
[1744581753755,0.5866372,583.13,582.68,0.676]
[1744581754051,0.5866372,583.12,582.68,0.676]
[1744581754250,0.5866372,583.11,582.68,0.676]
[1744581754449,0.5866372,583.1,582.68,0.676]
[1744581754650,0.216,583.21,582.68,1.348]
[1744581754850,0.58622707,583.2,582.68,1.348]
[1744581755056,0.58622707,583.19,582.68,1.348]
[1744581755254,0.58622707,583.18,582.68,1.348]
[1744581755455,0.58622707,583.17,582.68,1.348]
[1744581755755,0.58622707,583.16,582.68,1.348]
[1744581755955,0.58622707,583.15,582.68,1.348]
[1744581756254,0.58622707,583.14,582.68,1.348]
[1744581756455,0.58622707,583.13,582.68,1.348]
[1744581756755,0.5859635,583.12,582.68,1.348]
[1744581756954,0.216,583.21,582.68,1.348]
[1744581757154,0.5859635,583.2,582.68,1.348]
[1744581757354,0.5859635,583.19,582.68,1.348]
[1744581757555,0.5859635,583.18,582.68,1.348]
[1744581757755,0.5859635,583.17,582.68,1.348]
[1744581757956,0.5859635,583.16,582.68,1.348]
[1744581758255,0.5859635,583.15,582.68,1.348]
[1744581758450,0.5859635,583.14,582.68,1.348]
[1744581758656,0.5859635,583.13,582.68,1.348]
[1744581758856,0.5857607,583.12,582.68,1.348]
[1744581759056,0.29853819,583.88,582.68,1.348]
[1744581759256,0.34254787,583.86,582.68,1.348]
[1744581759453,0.89929669,583.85,582.68,1.348]
[1744581759651,0.29853819,583.88,582.68,1.348]
[1744581759652,0.34256547,583.83,582.68,1.348]
[1744581759851,0.89929669,583.82,582.68,1.348]
[1744581760054,0.34258307,583.8,582.68,1.348]
[1744581760255,0.89929669,583.79,582.68,1.348]
[1744581760453,1.2418915,583.78,582.68,1.946]
[1744581760759,1.24189737,583.77,582.68,1.946]
[1744581760959,1.24190324,583.76,582.68,1.946]
[1744581761163,1.2419091,583.75,582.68,1.946]
[1744581761361,1.24191497,583.74,582.68,1.946]
[1744581761554,1.24192084,583.73,582.68,1.946]
[1744581761858,1.24192671,583.72,582.69,0.31520996]
[1744581762055,1.24193258,583.71,582.69,0.31520996]
[1744581762259,1.24193845,583.7,582.69,0.31520996]
[1744581762457,1.24194432,583.69,582.69,0.31520996]
[1744581762658,1.24195019,583.68,582.69,0.31520996]
[1744581762854,1.24195606,583.67,582.69,0.31520996]
[1744581763055,1.24196194,583.66,582.69,0.31520996]
[1744581763256,1.24196781,583.65,582.69,0.31520996]
[1744581763461,0.216,583.72,582.69,0.31520996]
[1744581763462,1.24197368,583.64,582.69,0.31520996]
[1744581763661,1.24197955,583.63,582.69,0.31520996]
[1744581763862,1.24198542,583.62,582.69,0.31520996]
[1744581764162,1.24199129,583.61,582.69,0.31520996]
[1744581764363,1.24199716,583.6,582.69,0.31520996]
[1744581764559,0.89929669,583.59,582.69,0.31520996]
[1744581764757,0.89877433,583.58,582.69,0.31520996]
[1744581765062,0.89877433,583.57,582.69,0.31520996]
[1744581765262,0.89877433,583.56,582.69,0.31520996]
[1744581765464,0.89877433,583.55,582.69,0.31520996]
[1744581765663,0.89877433,583.54,582.69,0.31520996]
[1744581765962,0.89877433,583.53,582.69,0.31520996]
[1744581766164,0.89877433,583.52,582.69,0.31520996]
[1744581766462,0.89877433,583.51,582.69,0.31520996]
[1744581766758,0.89877433,583.5,582.69,0.31520996]
[1744581766957,0.58523834,583.49,582.7,0.642]
[1744581767160,0.58523834,583.48,582.7,0.642]
[1744581767364,0.58523834,583.47,582.7,0.642]
[1744581767663,0.58523834,583.46,582.71,0.558]
[1744581767862,0.58523834,583.45,582.71,0.558]
[1744581768062,0.58523834,583.44,582.71,0.558]
[1744581768264,0.58523834,583.43,582.71,0.558]
[1744581768565,0.58523834,583.42,582.71,0.558]
[1744581768764,0.58523834,583.41,582.71,0.558]
[1744581768964,0.58523834,583.4,582.71,0.558]
[1744581769159,0.58523834,583.39,582.71,0.558]
[1744581769362,0.58523834,583.38,582.71,0.558]
[1744581769559,0.58523834,583.37,582.71,0.558]
[1744581769760,0.58523834,583.36,582.71,0.558]
[1744581769962,0.58504283,583.35,582.71,0.558]
[1744581770262,0.58504283,583.34,582.71,0.558]
[1744581770462,0.58504283,583.33,582.71,0.558]
[1744581770663,0.58504283,583.32,582.71,0.558]
[1744581770864,0.58504283,583.31,582.71,0.558]
[1744581771064,0.58504283,583.3,582.71,0.558]
[1744581771262,0.58504283,583.29,582.71,0.558]
[1744581771464,0.58504283,583.28,582.71,0.558]
[1744581771764,0.58504283,583.27,582.71,0.558]
[1744581771965,0.58504283,583.26,582.71,0.558]
[1744581772263,0.58504283,583.25,582.71,0.558]
[1744581772464,0.58504283,583.24,582.71,0.558]
[1744581772664,0.58504283,583.23,582.71,0.558]
[1744581772863,0.58504283,583.22,582.71,0.558]
[1744581773071,0.58504283,583.21,582.71,0.558]
[1744581773264,0.58504283,583.2,582.71,0.558]
[1744581773464,0.58502862,583.19,582.71,0.558]
[1744581773663,0.34270047,583.6,582.71,0.558]
[1744581773862,0.58503858,583.59,582.71,0.558]
[1744581774064,0.58503858,583.58,582.71,0.558]
[1744581774263,0.58503858,583.57,582.71,0.558]
[1744581774563,0.58503858,583.56,582.71,0.558]
[1744581774763,0.58503858,583.55,582.71,0.558]
[1744581774960,0.58503858,583.54,582.71,0.558]
[1744581775164,0.58503858,583.53,582.71,0.558]
[1744581775364,0.58503858,583.52,582.71,0.558]
[1744581775562,0.58503858,583.51,582.71,0.558]
[1744581775761,0.58503858,583.5,582.71,0.558]
[1744581775962,0.58503858,583.49,582.71,0.558]
[1744581776159,0.58503858,583.48,582.71,0.558]
[1744581776364,0.58503858,583.47,582.71,0.558]
[1744581776560,0.58503858,583.46,582.71,0.558]
[1744581776764,0.58503858,583.45,582.71,0.558]
[1744581776964,0.58503858,583.44,582.72,0.31513678]
[1744581777167,0.58503858,583.43,582.72,0.31513678]
[1744581777363,0.58503858,583.42,582.72,0.31513678]
[1744581777566,0.58503858,583.41,582.73,0.31513113]
[1744581777761,0.58503858,583.4,582.74,0.31513113]
[1744581777965,0.34270047,583.6,582.72,0.31513113]
[1744581777966,0.58503858,583.39,582.72,0.31513113]
[1744581778166,0.58503858,583.38,582.73,0.31513113]
[1744581778466,0.58503858,583.37,582.74,0.31513113]
[1744581778662,0.58503858,583.36,582.72,0.31513113]
[1744581778863,0.58503858,583.35,582.73,0.31513113]
[1744581779068,0.58503858,583.34,582.71,0.31513113]
[1744581779269,0.58503858,583.33,582.72,0.31513113]
[1744581779469,0.58503858,583.32,582.71,0.31513113]
[1744581779668,0.58503858,583.31,582.72,0.31513113]
[1744581779870,0.58503858,583.3,582.71,0.31513113]
[1744581780069,0.34270047,583.6,582.71,0.31513113]
[1744581780270,0.58540364,583.59,582.71,0.31513113]
[1744581780466,0.58540364,583.58,582.71,0.31513113]
[1744581780666,0.58540364,583.57,582.72,0.31511686]
[1744581780972,0.58540364,583.56,582.73,0.31511686]
[1744581781270,0.58540364,583.55,582.74,0.31511686]
[1744581781473,0.58540364,583.54,582.71,0.31511686]
[1744581781672,0.58540364,583.53,582.7,0.642]
[1744581781975,0.58540364,583.52,582.71,0.31511822]
[1744581782271,0.58540364,583.51,582.71,0.31511822]
[1744581782572,0.80140364,583.5,582.72,0.484]
[1744581782769,0.58540364,583.49,582.73,0.31511822]
[1744581782972,0.58540364,583.48,582.73,0.31511822]
[1744581783173,0.216,583.5,582.73,0.31511822]
[1744581783174,0.58540364,583.47,582.73,0.31511822]
[1744581783369,0.58540364,583.46,582.74,0.3151061]
[1744581783569,0.58540364,583.45,582.75,0.3151061]
[1744581783775,0.58540364,583.44,582.76,0.3151061]
[1744581784073,0.58540364,583.43,582.77,0.3151061]
[1744581784374,0.58540364,583.42,582.78,0.3151061]
[1744581784576,0.58540364,583.41,582.73,0.3151061]
[1744581784773,0.58540364,583.4,582.72,1.051]
[1744581785073,0.58540364,583.39,582.73,0.31506891]
[1744581785268,0.216,583.5,582.73,0.31506891]
[1744581785473,0.58509575,583.49,582.73,0.31506891]
[1744581785674,0.58509575,583.48,582.73,0.31506891]
[1744581785875,0.58509575,583.47,582.73,0.31506891]
[1744581786074,0.58509575,583.46,582.73,0.31506891]
[1744581786274,0.216,583.5,582.73,0.31506891]
[1744581786275,0.58509575,583.45,582.73,0.31506891]
[1744581786475,0.58509575,583.44,582.73,0.31506891]
[1744581786675,0.58509575,583.43,582.73,0.31506891]
[1744581786875,0.58509575,583.42,582.74,0.42]
[1744581787078,0.58509575,583.41,582.75,0.31506891]
[1744581787271,0.58509575,583.4,582.75,0.31506891]
[1744581787571,0.58509575,583.39,582.75,0.31506891]
[1744581787770,0.216,583.5,582.75,0.31506891]
[1744581787976,0.58493654,583.49,582.74,0.42]
[1744581788276,0.58493654,583.48,582.76,0.587]
[1744581788478,0.58493654,583.47,582.77,0.31505889]
[1744581788777,0.58493654,583.46,582.77,0.31505889]
[1744581788976,0.58493654,583.45,582.77,0.31505889]
[1744581789178,0.216,583.5,582.77,0.31505889]
[1744581789476,0.58483237,583.49,582.77,0.31505889]
[1744581789777,0.216,583.5,582.77,0.31505889]
[1744581790077,0.58472469,583.49,582.77,0.31505889]
[1744581792280,0.216,583.5,582.77,0.31505889]
[1744581792483,0.58468047,583.49,582.77,0.31505889]
[1744581793281,0.216,583.5,582.77,0.31505889]
[1744581793482,0.58469693,583.49,582.77,0.31505889]
[1744581794082,0.58469693,583.49,582.77,0.81105889]
[1744581794282,0.58469693,583.49,582.78,0.31505889]
[1744581794481,0.216,583.5,582.78,0.31505889]
[1744581797289,0.216,583.5,582.77,0.954]
[1744581797488,0.216,583.5,582.78,0.31494189]
[1744581798991,0.216,583.5,582.79,0.34317678]
[1744581799290,0.216,583.5,582.8,0.31494189]
[1744581799590,0.29824652,584.28,582.8,0.31494189]
[1744581799790,0.89794821,584.27,582.8,0.31494189]
[1744581799990,0.34238953,584.13,582.8,0.31494189]
[1744581800290,0.89794821,584.12,582.8,0.31494189]
[1744581800491,0.89794821,584.11,582.8,0.31494189]
[1744581800690,1.24035533,584.1,582.8,0.31494189]
[1744581800891,1.24036119,584.09,582.8,0.31494189]
[1744581801191,1.24036705,584.08,582.8,0.31494189]
[1744581801386,1.24037291,584.07,582.8,0.31494189]
[1744581801585,1.24037878,584.06,582.8,0.31494189]
[1744581801789,1.24038464,584.05,582.8,0.31494189]
[1744581801984,0.9270594,584.04,582.8,0.661]
[1744581802185,1.24038391,584.03,582.81,0.31482091]
[1744581802487,0.92707113,584.02,582.81,0.31482091]
[1744581802686,1.24038274,584.01,582.81,0.31482091]
[1744581802891,0.58461711,584.0,582.81,0.31482091]
[1744581803093,0.58461711,583.99,582.82,0.34315912]
[1744581803292,0.58461711,583.98,582.83,0.31482091]
[1744581803492,0.80061711,583.97,582.84,0.34314734]
[1744581803693,0.58461711,583.96,582.85,0.31465409]
[1744581803992,0.58461711,583.95,582.86,0.34313557]
[1744581804194,0.58461711,583.94,582.87,0.31465409]
[1744581804392,0.58461711,583.93,582.87,0.65778377]
[1744581804589,0.58461711,583.92,582.88,0.31465409]
[1744581804794,0.58461711,583.91,582.88,0.31465409]
[1744581804994,0.58461711,583.9,582.88,0.31465409]
[1744581805191,0.58461711,583.89,582.88,0.31465409]
[1744581805391,0.58461711,583.88,582.88,0.31465409]
[1744581805594,0.58461711,583.87,582.88,0.31465409]
[1744581805795,0.58461711,583.86,582.88,0.31465409]
[1744581805996,0.58461711,583.85,582.88,0.31465409]
[1744581806294,0.58461711,583.84,582.88,0.31465409]
[1744581806495,0.58461711,583.83,582.88,0.31465409]
[1744581806795,0.58461711,583.82,582.88,0.31465409]
[1744581806992,0.58461711,583.81,582.89,0.34311791]
[1744581807192,0.58461711,583.8,582.9,0.31465409]
[1744581807398,0.58461711,583.79,582.9,0.31465409]
[1744581807596,0.58461711,583.78,582.9,0.31465409]
[1744581807797,0.58461711,583.77,582.91,0.34310613]
[1744581807998,0.216,583.97,582.92,0.31465409]
[1744581808197,0.58392034,583.96,582.93,0.31438072]
[1744581808398,0.58392034,583.95,582.92,0.31438072]
[1744581808697,0.58392034,583.94,582.93,0.34309436]
[1744581808898,0.58392034,583.93,582.93,0.34309436]
[1744581809093,0.58392034,583.92,582.93,0.34309436]
[1744581809297,0.58392034,583.91,582.93,0.34309436]
[1744581809496,0.58392034,583.9,582.93,0.34309436]
[1744581809698,0.58392034,583.89,582.93,0.34309436]
[1744581809998,0.58392034,583.88,582.93,0.34309436]
[1744581810301,0.216,583.97,582.93,0.34309436]
[1744581810302,0.58392034,583.87,582.93,0.34309436]
[1744581810494,0.58392034,583.86,582.93,0.34309436]
[1744581810696,0.216,583.97,582.93,0.34309436]
[1744581810899,0.58343361,583.96,582.93,0.34309436]
[1744581811400,0.216,583.97,582.93,0.34309436]
[1744581811597,0.58346819,583.96,582.93,0.34309436]
[1744581811797,0.58346819,583.95,582.93,0.34309436]
[1744581811997,0.58346819,583.94,582.93,0.34309436]
[1744581812400,0.216,583.97,582.93,0.34309436]
[1744581812600,0.58346227,583.93,582.94,0.31451448]
[1744581812901,0.58346372,583.92,582.95,0.34308259]
[1744581813094,0.58346372,583.91,582.96,0.31452481]
[1744581813298,0.58346372,583.9,582.97,0.34307082]
[1744581813496,0.58346372,583.89,582.98,0.31452481]
[1744581813694,0.58346372,583.88,582.99,0.34305905]
[1744581813899,0.58346372,583.87,583.0,0.31450173]
[1744581814100,0.58346372,583.86,582.99,0.34305905]
[1744581814302,0.216,583.97,582.99,0.34305905]
[1744581814503,0.5830088,583.96,582.99,0.34305905]
[1744581814704,0.216,583.97,582.99,0.34305905]
[1744581815598,0.216,583.97,583.0,0.31441489]
[1744581816006,0.216,583.97,583.01,0.424]
[1744581816203,0.216,583.97,583.02,0.31441489]
[1744581816405,0.216,583.97,583.03,0.3144007]
[1744581816605,0.216,583.97,583.02,0.3144007]
[1744581816804,0.216,583.97,583.01,0.424]
[1744581816805,0.216,583.97,583.03,0.3144007]
[1744581817004,0.216,583.97,583.02,0.3144007]
[1744581817201,0.216,583.97,583.03,0.3144007]
[1744581817405,0.216,583.97,583.02,0.3144007]
[1744581817605,0.216,583.97,583.04,0.34302963]
[1744581818001,0.216,583.97,583.05,0.31425323]
[1744581818207,0.216,583.97,583.06,0.31418401]
[1744581818502,0.216,583.97,583.07,0.31418401]
[1744581818702,0.216,583.97,583.08,0.31418401]
[1744581818901,0.216,583.97,583.09,0.31418401]
[1744581819103,0.216,583.97,583.1,0.31418401]
[1744581819307,0.216,583.97,583.11,0.31418401]
[1744581819506,0.216,583.97,583.12,0.31418401]
[1744581819707,0.216,583.97,583.13,0.31418401]
[1744581819907,0.216,583.97,583.14,0.31418401]
[1744581820101,0.216,583.97,583.15,0.31418401]
[1744581820302,0.216,583.97,583.16,0.31418401]
[1744581820505,0.216,583.97,583.04,0.34302963]
[1744581832721,0.216,583.97,583.04,0.79902963]
[1744581833625,1.30516834,585.63,583.04,1.21902963]
[1744581833818,0.34158255,585.51,583.04,1.21902963]
[1744581834018,0.57927768,585.5,583.04,1.21902963]
[1744581834220,0.3416584,585.38,583.04,1.21902963]
[1744581834419,0.57927768,585.37,583.04,1.21902963]
[1744581834619,0.34172846,585.26,583.04,1.21902963]
[1744581834922,0.57927768,585.25,583.04,1.21902963]
[1744581835223,0.34179854,585.14,583.04,1.21902963]
[1744581835424,0.57927768,585.13,583.04,1.21902963]
[1744581835623,0.34186281,585.03,583.04,1.21902963]
[1744581835821,0.57952983,585.02,583.04,1.21902963]
[1744581836028,0.34188034,585.0,583.04,1.21902963]
[1744581836222,0.57952983,584.99,583.04,1.21902963]
[1744581836425,0.34189787,584.97,583.04,1.21902963]
[1744581836622,0.57952983,584.96,583.04,1.21902963]
[1744581836826,0.34191541,584.94,583.04,1.21902963]
[1744581837022,0.57952983,584.93,583.04,1.21902963]
[1744581837224,0.34193294,584.91,583.04,1.21902963]
[1744581837427,0.57952983,584.9,583.04,1.21902963]
[1744581837724,0.34195048,584.88,583.04,1.21902963]
[1744581837924,0.57952983,584.87,583.04,1.21902963]
[1744581838128,0.34196802,584.85,583.04,1.21902963]
[1744581838323,0.57952983,584.84,583.04,1.21902963]
[1744581838527,0.34198556,584.82,583.04,1.83502963]
[1744581838727,0.57952983,584.81,583.04,1.83502963]
[1744581838928,0.34200311,584.79,583.04,1.83502963]
[1744581839123,0.57952983,584.78,583.04,1.83502963]